[Event "2nd China Preliminary Asian Games 2022"]
[Site "HangZhou"]
[Date "2022.04.18"]
[Round "5.2"]
[White "Ding, Liren"]
[Black "Zhang, Zhong"]
[Result "1-0"]
[ECO "D26"]
[WhiteElo "2799"]
[BlackElo "2640"]
[Annotator "TA"]
[PlyCount "168"]
[EventDate "2022.04.13"]
[EventType "tourn"]
[EventCountry "CHN"]
[SourceTitle "playchess.com"]
[Source "ChessBase"]
[SourceQuality "1"]
[TimeControl "40/5400+30:1800+30"]

{[%evp 12,168,15,21,19,9,59,32,63,53,61,50,66,63,70,69,66,56,62,60,61,67,67,64,60,53,53,67,58,65,71,70,73,60,64,53,61,66,85,85,89,85,89,85,85,85,96,96,96,96,96,96,96,96,123,96,146,96,96,81,82,85,88,88,88,86,90,77,90,62,62,62,62,62,62,62,72,64,72,62,65,49,49,49,49,49,49,41,49,49,63,63,77,63,62,49,49,49,49,37,37,0,49,49,49,49,49,49,49,49,49,46,49,48,45,41,45,45,49,49,56,56,81,51,62,62,98,98,22,0,26,0,81,81,207,207,207,207,207,207,207,207,207,207,207,207,207,207,29975,29975,29973,29974,29969,29960,29980,29981,29982,29981,29989]} 1. d4 {[%emt 0:00:07]} d5 {[%emt 0:00:28]} 2. c4 {[%emt 0:00:07]} dxc4 {[%emt 0:00:04]} 3. Nf3 {[%emt 0:00:33]} Nf6 {[%emt 0:00:11]} 4. e3 {[%emt 0:00:05]} e6 {[%emt 0:00:06]} 5. Bxc4 {[%emt 0:00:06]} c5 {[%emt 0:00:06]} 6. O-O {[%emt 0:00:06]} Nc6 {[%emt 0:00:06]} 7. a3 {[%emt 0:00:40]} cxd4 {[%emt 0:10:56] D26: Queen's Gambit Accepted: 4 e3 e6 5 Bxc5 c5 sidelines.} 8. exd4 {[%emt 0:00:13]} a6 {[%emt 0:00:11]} (8... Bd6 $11) 9. Nc3 {[%emt 0:01:47]} Be7 {[%emt 0:02:38] White is slightly better.} 10. Ba2 {[%emt 0:02:43]} O-O {[%emt 0:05:45]} 11. Re1 {[%emt 0:00:54]} Re8 {[%emt 0:00:58]} 12. Bf4 {[%emt 0:05:20]} Nd5 {[%emt 0:09:14] [#]} 13. Nxd5 $146 {[%emt 0:03:22]} ({Predecessor:} 13. Bd2 Nc7 14. Be3 Nd5 15. Rc1 Nxc3 16. Rxc3 Bf6 17. Rd3 g6 18. Ne5 Ne7 {1-0 (43) Kiik,K (2445)-Heinimaki,L (2109) Jyvaskyla 2000}) 13... exd5 {[%emt 0:00:02]} 14. Qb3 {[%emt 0:00:56]} Be6 {[%emt 0:00:27]} 15. Qxb7 {[%emt 0:00:22]} Na5 {[%emt 0:00:21]} 16. Qc7 {[%emt 0:00:04] &Bianco is much more active.} Qxc7 {[%emt 0:00:10]} 17. Bxc7 {[%emt 0:00:05]} Nc4 {[%emt 0:00:07]} 18. Re2 {[%emt 0:12:20]} Ra7 {[%emt 0:03:35][%cal Ba8a7,Ba7d7,Bd7d5][%mdl 32]} 19. Bxc4 {[%emt 0:20:05]} dxc4 {[%emt 0:00:16]} 20. Ba5 {[%emt 0:00:02]} Rc8 {[%emt 0:04:22]} 21. Rae1 {[%emt 0:02:23][%cal Od4d5]} Rd7 {[%emt 0:02:00]} 22. Ne5 {[%emt 0:04:28]} Rd5 {[%emt 0:04:48]} 23. Bc3 {[%emt 0:00:05][%cal Oe5f7]} Bf6 {[%emt 0:02:18]} 24. h3 {[%emt 0:01:38]} Bxe5 {[%emt 0:06:57]} 25. Rxe5 {[%emt 0:00:12]} Rcd8 {[%emt 0:00:09]} 26. R5e4 {[%emt 0:02:18]} h5 {[%emt 0:01:15]} 27. h4 {[%emt 0:00:48]} Kh7 {[%emt 0:03:11]} 28. f3 {[%emt 0:00:19]} g5 {[%emt 0:01:32]} 29. hxg5 {[%emt 0:03:23]} Rxg5 {[%emt 0:00:06]} 30. Rh4 {[%emt 0:00:06]} Rdg8 {[%emt 0:06:23]} 31. Rh2 {[%emt 0:00:13]} Kg6 {[%emt 0:11:49]} 32. Kf2 {[%emt 0:00:11]} Rd5 {[%emt 0:00:39]} 33. Rh4 {[%emt 0:01:24]} Rb8 {[%emt 0:00:55] [#]} (33... Re8 $142 34. Rhe4 Red8) 34. Rf4 {[%emt 0:04:28]} ({White should play} 34. Re5 $1) 34... Rb6 $16 {[%emt 0:02:18]} 35. a4 {[%emt 0:01:50]} a5 {[%emt 0:12:19]} 36. Rfe4 {[%emt 0:15:50]} Bd7 {[%emt 0:01:43]} 37. Re5 {[%emt 0:02:41]} Rbd6 {[%emt 0:00:19]} 38. Bxa5 {[%emt 0:04:39]} Bxa4 {[%emt 0:02:52]} 39. Bb4 {[%emt 0:01:31]} Rd8 {[%emt 0:03:04]} 40. Ra1 {[%emt 0:00:00]} Rxe5 {[%emt 0:05:50]} 41. dxe5 $14 {[%emt 0:03:36][%mdl 4096] Endgame KRB-KRB} Bd7 {[%emt 0:00:00]} 42. Rd1 {[%emt 0:05:30]} Rb8 {[%emt 0:00:00]} 43. Bc3 {[%emt 0:00:05]} Bf5 {[%emt 0:00:00]} 44. Rd4 {[%emt 0:04:30]} Rc8 {[%emt 0:00:02]} 45. Ke3 {[%emt 0:00:06]} Be6 {[%emt 0:03:36]} 46. Ke4 {[%emt 0:03:43]} h4 {[%emt 0:05:50]} 47. Rd6 {[%emt 0:10:40]} Kh5 {[%emt 0:01:17]} 48. Ke3 {[%emt 0:01:02]} Kg5 {[%emt 0:04:13]} 49. Kf2 {[%emt 0:02:37]} Rh8 {[%emt 0:00:37]} 50. Rd1 {[%emt 0:03:30]} Kg6 {[%emt 0:07:58]} 51. Rh1 {[%emt 0:00:20]} Rh5 {[%emt 0:00:10]} 52. Kg1 {[%emt 0:00:28]} Kg5 {[%emt 0:03:05]} 53. Kh2 {[%emt 0:00:54]} Kf4 {[%emt 0:00:03]} 54. Re1 {[%emt 0:02:00]} Bd5 {[%emt 0:00:03]} 55. Rd1 {[%emt 0:02:03]} Be6 {[%emt 0:00:11]} 56. Re1 {[%emt 0:00:19]} Bd5 $1 {[%emt 0:00:05]} 57. Bd2+ {[%emt 0:00:53]} Kf5 {[%emt 0:00:05]} 58. Kh3 {[%emt 0:00:10]} Rh7 {[%emt 0:01:40]} 59. Re2 {[%emt 0:01:07]} Rh5 {[%emt 0:00:36]} 60. Bb4 {[%emt 0:02:35]} Kf4 {[%emt 0:00:58]} 61. Be7 {[%emt 0:01:12]} Rh7 {[%emt 0:00:42]} 62. Bf6 {[%emt 0:02:23]} Rh5 {[%emt 0:00:18]} 63. Re1 {[%emt 0:00:37]} Rh7 {[%emt 0:00:39]} 64. Be7 {[%emt 0:00:47]} Rh5 {[%emt 0:00:24]} 65. Bd6 {[%emt 0:00:15] e6+ is the strong threat.} ({Much weaker is} 65. Bxh4 Rh8 $11) 65... Be6+ {[%emt 0:03:00]} 66. Kh2 {[%emt 0:00:02]} Rh8 {[%emt 0:00:41]} 67. Be7 {[%emt 0:01:55]} Bd5 {[%emt 0:02:28][%cal Oh4h3]} 68. Bf6 {[%emt 0:00:16]} Rh5 {[%emt 0:01:20][%cal Oh4h3]} 69. Rd1 {[%emt 0:00:13]} Be6 {[%emt 0:00:08]} 70. Re1 {[%emt 0:01:56]} Bd5 $1 {[%emt 0:00:15] Against Re4+} 71. Rd1 {[%emt 0:00:50]} (71. e6 $11 fxe6 72. Rd1) 71... Be6 $16 {[%emt 0:00:05]} 72. Rd4+ {[%emt 0:00:19]} Ke3 {[%emt 0:02:33] A mistake that costs the game.} (72... Kf5 $16) 73. Rxh4 $18 {[%emt 0:00:13]} Rxh4+ {[%emt 0:00:08]} 74. Bxh4 {[%emt 0:00:02] KB-KB} Kd4 {[%emt 0:00:04] [#]} 75. Bf6 $1 {[%emt 0:00:13]} c3 {[%emt 0:03:11]} 76. bxc3+ {[%emt 0:00:04]} Kxc3 {[%emt 0:00:02]} 77. g4 {[%emt 0:00:03]} Kc4 {[%emt 0:01:20]} 78. Kg3 {[%emt 0:00:03] aiming for f4.} Bd5 {[%emt 0:00:37]} 79. f4 {[%emt 0:00:20][%cal Bf3f4,Bf4f5][%mdl 32] And now f5 would win.} Be4 $2 {[%emt 0:00:10]} (79... Kb5 $18 80. Bg7 Kc6) 80. f5 {[%emt 0:00:40] White mates.} Kd5 {[%emt 0:00:03]} 81. Kf4 {[%emt 0:00:04]} Bd3 {[%emt 0:00:30]} 82. Bg7 {[%emt 0:02:47]} Bc2 {[%emt 0:01:15]} 83. Kg5 {[%emt 0:00:23]} Kc6 {[%emt 0:00:37]} 84. e6 {[%emt 0:00:46]} Kd5 {[%emt 0:01:01] Weighted Error Value: White=0.06 (flawless) /Black=0.06 (flawless)} 1-0

[Event "2nd China Preliminary Asian Games 2022"]
[Site "HangZhou"]
[Date "2022.04.18"]
[Round "5.3"]
[White "Xu, Xiangyu"]
[Black "Wei, Yi"]
[Result "1/2-1/2"]
[ECO "D38"]
[WhiteElo "2564"]
[BlackElo "2729"]
[Annotator "TA"]
[PlyCount "62"]
[EventDate "2022.04.13"]
[EventType "tourn"]
[EventCountry "CHN"]
[SourceTitle "playchess.com"]
[Source "ChessBase"]
[SourceQuality "1"]
[TimeControl "40/5400+30:1800+30"]

{[%evp 20,62,21,14,7,0,4,0,0,0,0,0,0,0,0,0,0,0,0,0,0,0,7,0,0,0,0,0,0,0,0,-22,-18,-17,-18,-25,-29,-27,-27,-25,-25,-26,-26,-21,-19]} 1. d4 {[%emt 0:00:03]} Nf6 {[%emt 0:00:32]} 2. c4 {[%emt 0:00:36]} e6 {[%emt 0:01:00]} 3. Nf3 {[%emt 0:00:58]} d5 {[%emt 0:00:35]} 4. Nc3 {[%emt 0:00:12]} Bb4 {[%emt 0:01:19]} 5. Bg5 {[%emt 0:00:21]} h6 {[%emt 0:00:54]} 6. Bxf6 {[%emt 0:00:10]} Qxf6 {[%emt 0:00:06]} 7. e3 {[%emt 0:03:28]} O-O {[%emt 0:01:02]} 8. Rc1 {[%emt 0:03:42]} dxc4 {[%emt 0:01:17]} 9. Bxc4 {[%emt 0:00:25]} c5 {[%emt 0:02:08]} 10. O-O {[%emt 0:08:00]} cxd4 {[%emt 0:00:14]} 11. Nxd4 {[%emt 0:00:08]} Bd7 {[%emt 0:00:57] D38: Queen's Gambit Declined: Ragozin Defence (4 Nf3 Bb4).} 12. Qb3 {[%emt 0:00:35]} Nc6 {[%emt 0:00:29]} 13. Nxc6 {[%emt 0:00:16]} (13. Rfd1 {seems wilder.} Bxc3 14. Qxc3 Rfc8 15. Nf3) 13... Bxc3 {[%emt 0:00:07]} 14. Qxb7 {[%emt 0:00:31]} Bxc6 {[%emt 0:02:00]} 15. Qxc6 {[%emt 0:00:07]} Bxb2 {[%emt 0:00:33] [#] ...Rac8 is the strong threat.} 16. Rcd1 $5 $146 {[%emt 0:03:25][%mdl 8] New and interesting.} ({Predecessor:} 16. Rc2 Rac8 17. Qa4 Rc7 18. Rb1 Be5 19. Bd3 Rxc2 20. Qxc2 Qe7 21. g3 Qc7 22. Qxc7 Bxc7 {½-½ (33) Wen,Y (2585)-Li,C (2732) China 2018}) 16... Rac8 {[%emt 0:00:14]} 17. Qa6 {[%emt 0:00:24]} Rc7 {[%emt 0:01:11]} 18. Bb3 {[%emt 0:00:58]} Qe5 {[%emt 0:02:25]} 19. Rd2 {[%emt 0:03:08]} Rfc8 {[%emt 0:01:53]} 20. Rfd1 {[%emt 0:02:11]} Kh7 {[%emt 0:00:51]} 21. Qd6 {[%emt 0:02:31]} Qf6 {[%emt 0:00:50]} 22. Qd3+ {[%emt 0:00:31]} g6 {[%emt 0:00:05]} 23. Qe4 {[%emt 0:00:33]} Bc3 {[%emt 0:02:41]} 24. Rc2 {[%emt 0:02:07]} Be1 {[%emt 0:00:30] And now ...Rxc2 would win.} 25. Rxe1 {[%emt 0:05:29] Strongly threatening Rxc7.} Rxc2 {[%emt 0:00:04][%mdl 64] [#] Remove Defender} 26. Bxc2 {[%emt 0:00:07]} Qc3 {[%emt 0:00:02][%csl LRc2,LRe1][%cal Rc3e1]} 27. Kf1 {[%emt 0:00:19] Hoping for Bb3.} Qxc2 {[%emt 0:00:03]} 28. Qxc2 {[%emt 0:00:05]} Rxc2 {[%emt 0:00:02]} 29. Re2 {[%emt 0:00:07]} Rc1+ {[%emt 0:00:03]} 30. Re1 {[%emt 0:00:05]} Rc5 {[%emt 0:00:12]} 31. Rd1 {[%emt 0:00:23]} Ra5 {[%emt 0:00:44] A balanced but interesting game.  Weighted Error Value: White=0.03 (flawless) /Black=0.00 (flawless)} 1/2-1/2

[Event "2nd China Preliminary Asian Games 2022"]
[Site "HangZhou"]
[Date "2022.04.20"]
[Round "6.1"]
[White "Ma, Qun"]
[Black "Ding, Liren"]
[Result "1/2-1/2"]
[ECO "C48"]
[WhiteElo "2645"]
[BlackElo "2799"]
[Annotator "TA"]
[PlyCount "51"]
[EventDate "2022.04.13"]
[EventType "tourn"]
[EventCountry "CHN"]
[SourceTitle "playchess.com"]
[Source "ChessBase"]
[SourceQuality "1"]
[TimeControl "40/5400+30:1800+30"]

{[%evp 10,51,28,28,17,0,8,39,39,23,81,75,81,66,49,64,77,0,0,0,0,0,0,0,0,0,0,0,0,0,0,0,0,0,0,0,0,0,0,0,0,0,0,0]} 1. e4 {[%emt 0:00:59]} e5 {[%emt 0:00:46]} 2. Nf3 {[%emt 0:00:11]} Nc6 {[%emt 0:00:12]} 3. Nc3 {[%emt 0:01:01]} Nf6 {[%emt 0:00:04]} 4. Bb5 {[%emt 1:30:19]} Nd4 {[%emt 0:00:12]} 5. Bc4 {[%emt 0:00:00]} Bc5 {[%emt 0:00:11]} 6. Nxe5 {[%emt 0:00:00]} Qe7 {[%emt 0:00:04] C48: Four Knights: 4 Bb5, replies other than 4...Bb4.} 7. Nf3 {[%emt 0:00:00]} (7. Bxf7+ Kf8 8. Nd3 (8. f4 $2 d6 $19) 8... Kxf7 $17) 7... d5 $1 {[%emt 0:00:09]} (7... Nxe4 8. Nd5 Nxf3+ 9. gxf3 $16 (9. Qxf3 Ng5+ 10. Qe3 Qxe3+ 11. Nxe3 O-O $11)) 8. Bxd5 {[%emt 0:00:00] 8.Nxd5 gains popularity.} Bg4 {[%emt 0:00:39] White is slightly better.} 9. d3 {[%emt 0:00:00]} ({Stronger than} 9. Bxb7 Rb8 10. Ba6 Nxe4 $17) 9... O-O-O {[%emt 0:00:07] [#]} (9... c6 $11 {keeps the balance.} 10. Bb3 Nd7) 10. Be3 $1 $16 {[%emt 0:00:00]} Nxd5 {[%emt 0:00:15]} 11. Nxd5 {[%emt 0:00:00]} ({Of course not} 11. exd5 Bxf3 12. gxf3 Nf5 $17) 11... Rxd5 {[%emt 0:00:11]} 12. exd5 {[%emt 0:00:00]} Re8 {[%emt 0:00:02]} 13. c3 {[%emt 0:00:00]} (13. O-O $16 Bxf3 14. gxf3) 13... Nxf3+ $11 {[%emt 0:00:16] The position is equal.} 14. gxf3 {[%emt 0:00:00]} Qh4 {[%emt 0:00:02]} 15. Kd2 {[%emt 0:00:00][%cal Be1d2,Bd2c1,Bc1b1,Bb1a2][%mdl 32]} ({Avoid the trap} 15. fxg4 $2 Rxe3+ 16. Kd2 Qxf2+ 17. Kc1 Re2 $19) 15... Rxe3 $1 {[%emt 0:00:04][%mdl 64] [#] Remove Defender} 16. fxe3 {[%emt 0:00:00]} Qf2+ {[%emt 0:00:03]} 17. Kc1 {[%emt 0:00:00]} Bxf3 {[%emt 0:00:06]} 18. Qe1 {[%emt 0:00:00]} Bxe3+ {[%emt 0:00:05] This bishop pair is nice.} 19. Kb1 {[%emt 0:00:00] Hoping for Qxf2.} Bxh1 {[%emt 0:00:11]} 20. Qxh1 {[%emt 0:00:00][%mdl 4096] Endgame Threatens to win with Qe4. KQR-KQB} Qe2 $1 {[%emt 0:00:03][%cal Re2d3] [#]} 21. a4 $5 $146 {[%emt 0:00:00][%mdl 8] Black must now prevent Qe4. An interesting novelty.} ({Predecessor:} 21. a3) 21... Qxd3+ {[%emt 0:00:03]} 22. Ka2 {[%emt 0:00:00]} Qc4+ {[%emt 0:00:02]} 23. Kb1 {[%emt 0:00:00]} Qd3+ {[%emt 0:00:05]} 24. Ka2 {[%emt 0:00:00]} Qc4+ {[%emt 0:00:02]} 25. Kb1 {[%emt 0:00:00]} Qd3+ {[%emt 0:00:13]} 26. Ka2 {[%emt 0:00:00] Weighted Error Value: White=0.11 (very precise) /Black=0.05 (flawless)} 1/2-1/2

[Event "2nd China Preliminary Asian Games 2022"]
[Site "HangZhou"]
[Date "2022.04.20"]
[Round "6.2"]
[White "Zhang, Zhong"]
[Black "Wei, Yi"]
[Result "0-1"]
[ECO "B51"]
[WhiteElo "2640"]
[BlackElo "2729"]
[Annotator "TA"]
[PlyCount "166"]
[EventDate "2022.04.13"]
[EventType "tourn"]
[EventCountry "CHN"]
[SourceTitle "playchess.com"]
[Source "ChessBase"]
[SourceQuality "1"]
[TimeControl "40/5400+30:1800+30"]

{[%evp 34,166,2,-23,-19,0,-11,-12,-23,-10,-16,-47,-45,-51,-35,-44,-14,-22,-10,-10,-10,-21,0,0,0,0,0,0,0,0,0,0,0,0,0,0,0,0,0,0,0,0,0,0,0,0,0,-404,0,0,0,-295,-355,-420,-406,-400,-402,-346,-323,-504,-496,-491,0,0,0,-476,-420,-446,-412,-370,0,-244,0,0,0,0,0,0,0,0,0,0,0,-171,-164,-199,0,-96,0,0,0,0,0,0,0,0,0,0,0,0,0,0,0,-27999,-27999,-27990,-27990,-27993,-27981,-27994,-27992,-27993,-27981,-27994,-27987,-27991,-27991,-27992,-27992,-27993,-27988,-27992,-27992,-27993,-27990,-27997,-27995,-27998,-27995,-27996,-27996,-27997,-27997,-27999,-27999]} 1. e4 {[%emt 0:00:05]} c5 {[%emt 0:00:07]} 2. Nf3 {[%emt 0:00:13]} d6 {[%emt 0:00:06]} 3. Bb5+ {[%emt 0:00:30]} Nd7 {[%emt 0:00:14]} 4. d4 {[%emt 0:00:30]} cxd4 {[%emt 0:00:11]} 5. Qxd4 {[%emt 0:00:40]} a6 {[%emt 0:00:07]} 6. Bxd7+ {[%emt 0:00:34]} Bxd7 {[%emt 0:00:07]} 7. c4 {[%emt 0:00:33]} Nf6 {[%emt 0:00:21]} 8. Bg5 {[%emt 0:05:27]} e6 {[%emt 0:00:16]} 9. Nc3 {[%emt 0:01:24]} Bc6 {[%emt 0:05:15]} 10. O-O {[%emt 0:03:11]} Be7 {[%emt 0:00:07]} 11. a4 {[%emt 0:02:52]} O-O {[%emt 0:00:58]} 12. Rfd1 {[%emt 0:00:11]} h6 {[%emt 0:06:21]} 13. Bh4 {[%emt 0:01:02]} Qa5 {[%emt 0:00:29]} 14. Qd3 {[%emt 0:06:58]} Rac8 {[%emt 0:11:40]} 15. b3 {[%emt 0:05:02]} Rfd8 {[%emt 0:07:59]} 16. Nd4 {[%emt 0:02:48]} Be8 {[%emt 0:02:13]} 17. f3 {[%emt 0:20:49]} Qh5 {[%emt 0:11:46]} 18. Bf2 {[%emt 0:03:04]} d5 $1 {[%emt 0:01:10]} 19. cxd5 {[%emt 0:02:52]} Bd6 {[%emt 0:00:25]} 20. Bg3 {[%emt 0:01:10]} Bxg3 {[%emt 0:01:46]} 21. hxg3 {[%emt 0:00:02]} exd5 {[%emt 0:00:12]} 22. e5 {[%emt 0:00:27]} Qxe5 {[%emt 0:01:34]} 23. Nce2 {[%emt 0:01:39]} Bd7 {[%emt 0:06:17]} 24. Rac1 {[%emt 0:00:42]} g5 {[%emt 0:03:52]} 25. Kf2 {[%emt 0:00:23]} Rxc1 {[%emt 0:03:25]} 26. Rxc1 {[%emt 0:00:19]} Re8 {[%emt 0:00:14]} 27. a5 {[%emt 0:01:34]} Bb5 {[%emt 0:12:04]} 28. Nxb5 {[%emt 0:15:33]} axb5 {[%emt 0:00:06]} 29. Rc5 {[%emt 0:00:12]} b4 {[%emt 0:04:35]} 30. Rb5 {[%emt 0:02:26]} Qb2 {[%emt 0:11:19]} 31. Rxb7 {[%emt 0:04:40]} Nh5 {[%emt 0:00:29]} ({Don't take} 31... Qa1 32. Rb6 $16 (32. Qd2 Qxa5 33. Nd4 Ra8 $11)) 32. a6 {[%emt 0:02:32]} Nxg3 $1 {[%emt 0:00:15]} 33. Kxg3 {[%emt 0:00:14]} Rxe2 {[%emt 0:00:08]} 34. Qxe2 {[%emt 0:01:32]} (34. Qxd5 {gets mated.} Rxg2+ 35. Kh3 Rh2+ 36. Kg4 Rh4+ 37. Kg3 Qh2#) 34... Qxe2 {[%emt 0:00:05]} 35. a7 {[%emt 0:01:09]} Qe5+ {[%emt 0:09:00]} 36. Kf2 $1 {[%emt 0:00:16]} Qb2+ {[%emt 0:00:24]} 37. Kg3 {[%emt 0:01:25]} Qe5+ {[%emt 0:00:14]} 38. Kf2 $1 {[%emt 0:00:04]} Qd4+ {[%emt 0:00:06]} 39. Ke2 {[%emt 0:00:10]} Qb2+ {[%emt 0:00:05]} 40. Kd3 $2 {[%emt 0:00:00][%mdl 8192]} (40. Ke3 $11 {and White is okay.} Qxb3+ 41. Kd4 Qc3+ 42. Kxd5 Qd3+ 43. Kc5 Qe3+ 44. Kxb4 Qd4+ 45. Kb5 Qb2+ 46. Kc6 Qf6+ 47. Kb5 Qe5+ 48. Kc6 Qe8+ 49. Kb6) 40... Qc3+ $2 {[%emt 0:00:00]} (40... Qb1+ $1 $19 41. Kd4 Qa1+ 42. Kxd5 Qa5+ 43. Kc6 Kg7) 41. Ke2 $11 {[%emt 0:04:37]} Qb2+ $2 {[%emt 0:03:45][%mdl 8192]} (41... Qc2+ $11 42. Ke3 Qc3+ 43. Ke2 Qc2+ 44. Ke3 Qxb3+ 45. Kd4 Qc4+ 46. Ke5 Qe2+ 47. Kd4 Qf2+ 48. Kd3 Qf1+ 49. Kd2 Kg7) 42. Kd3 $19 {[%emt 0:00:28]} Qb1+ $1 {[%emt 0:00:28]} ({Stronger than} 42... Qxb3+ 43. Kd4 Qc4+ 44. Ke5 Qe2+ 45. Kd4 Qd2+ 46. Ke5 Qf4+ 47. Kxd5 Qd2+ 48. Kc6 Qc3+ 49. Kd5 Qd3+ 50. Kc5 Qf5+ 51. Kd4 Qf6+ 52. Kc5 Qf5+ 53. Kd4 Qf6+ 54. Kc5 Qc3+ 55. Kd5 Qd2+ 56. Kc5 Qc2+ 57. Kb5 Qe2+ 58. Kc5 Qf2+ 59. Kc6 Qc2+ 60. Kb5 Qf5+ 61. Ka4 Qc2+ 62. Kb5 $11) 43. Kd4 {[%emt 0:01:35]} Qa1+ {[%emt 0:00:13]} 44. Kxd5 {[%emt 0:02:39]} Kg7 {[%emt 0:00:56]} 45. Kc6 {[%emt 0:01:14]} Qa5 {[%emt 0:03:50]} 46. Rc7 {[%emt 0:09:30]} (46. g4 $142 Kg6 47. Kd7) 46... Qa6+ $1 $19 {[%emt 0:01:19]} 47. Kc5 {[%emt 0:00:53]} Qa5+ $2 {[%emt 0:03:57]} (47... h5 $1 $19 {Strongly threatening ...h4.} 48. Kxb4 g4 49. fxg4 hxg4) 48. Kc6 $1 $11 {[%emt 0:00:19]} Qa6+ $2 {[%emt 0:00:25][%mdl 8192]} (48... h5 $11) 49. Kc5 $19 {[%emt 0:00:04]} h5 $1 {[%emt 0:01:12]} 50. Kxb4 {[%emt 0:00:11]} Qb6+ {[%emt 0:04:18]} 51. Ka4 {[%emt 0:00:07]} Qa6+ {[%emt 0:00:05]} 52. Kb4 {[%emt 0:00:02]} Kf6 $2 {[%emt 0:14:51]} (52... Qd6+ $1 $19 53. Kb5 Qxc7) 53. Kc5 $11 {[%emt 0:00:28]} Ke5 {[%emt 0:00:10]} 54. Re7+ {[%emt 0:05:28]} Kf6 {[%emt 0:00:03]} 55. Rc7 {[%emt 0:00:09]} Qa3+ {[%emt 0:02:17]} 56. Kc6 {[%emt 0:02:09]} Ke5 {[%emt 0:01:45]} 57. b4 {[%emt 0:04:48]} Qa6+ {[%emt 0:00:26]} 58. Kd7 $2 {[%emt 0:00:16]} (58. Kc5 $11) 58... Qa4+ {[%emt 0:02:32]} 59. Ke7 {[%emt 0:17:41] [#]} Qxb4+ {[%emt 0:00:14]} (59... g4 $1 $19 {[%cal Rg4f3] has better winning chances. ...gxf3 is the strong threat.} 60. b5 gxf3 61. gxf3 h4) 60. Kxf7 $17 {[%emt 0:00:06] [#]} Qa3 {[%emt 0:01:11]} ({Black should try} 60... Qa4 $1 $17 {[%cal Ra4a6] Threatens to win with ...Qa6.} 61. Kg6 g4 62. f4+ Kd6) 61. Kg6 $1 $11 {[%emt 0:00:18]} g4 {[%emt 0:00:26]} 62. fxg4 {[%emt 0:00:44]} hxg4 {[%emt 0:00:33]} 63. Kg5 $1 {[%emt 0:00:29]} Qa4 {[%emt 0:00:27]} 64. Kh4 {[%emt 0:01:32]} Kf5 {[%emt 0:00:33]} 65. Rf7+ {[%emt 0:00:53]} Ke5 {[%emt 0:00:19]} 66. Rg7 {[%emt 0:00:42]} Qa2 {[%emt 0:00:42]} 67. Kg3 {[%emt 0:00:53]} Kf5 {[%emt 0:00:20]} 68. Rxg4 $2 {[%emt 0:00:28][%mdl 8192]} (68. Rc7 $11 Ke6 69. Rg7) 68... Qa3+ {[%emt 0:00:07]} 69. Kh4 {[%emt 0:00:20]} Qxa7 {[%emt 0:00:03]} 70. Kh3 {[%emt 0:00:36]} Qe3+ {[%emt 0:00:56]} 71. Kh4 {[%emt 0:00:16]} Qe1+ {[%emt 0:00:58]} 72. Kh3 {[%emt 0:00:07]} Qe3+ {[%emt 0:00:34]} 73. Kh4 {[%emt 0:00:04]} Ke5 {[%emt 0:00:32]} 74. Rg5+ {[%emt 0:00:38]} Kf4 {[%emt 0:00:10]} 75. Rg4+ {[%emt 0:00:42]} Kf5 {[%emt 0:00:05]} 76. Ra4 {[%emt 0:00:50]} Qc3 {[%emt 0:01:08]} 77. Rg4 {[%emt 0:00:41]} Qe3 {[%emt 0:00:20]} 78. Ra4 {[%emt 0:00:02]} Qd3 {[%emt 0:00:19]} 79. Rb4 {[%emt 0:01:02]} Qd6 {[%emt 0:00:48]} 80. Rb5+ {[%emt 0:00:33]} Kf6 {[%emt 0:00:18]} 81. g3 {[%emt 0:00:40]} Qd4+ {[%emt 0:00:06]} 82. Kh5 {[%emt 0:00:14]} Qd1+ {[%emt 0:00:05]} 83. Kh4 {[%emt 0:00:05]} Qa4+ {[%emt 0:00:03]} 0-1